bitfinex/quotes_ETHUSD_20240711
["timestamp","ask_amount","ask_price","bid_price","bid_amount"]
[1720680929598,2.2967,3116.8,3115.9,0.833]
[1720680929807,2.2967,3116.6,3115.7,0.833]
[1720680930096,2.2967,3116.6,3115.9,0.833]
[1720680936738,2.2967,3116.6,3115.6,3.0]
[1720680937041,2.2967,3116.6,3115.7,0.833]
[1720680937208,0.31297,3116.5,3115.7,0.833]
[1720680938343,2.2967,3116.6,3115.7,0.833]
[1720680953688,2.2967,3116.6,3115.6,3.0]
[1720680953864,2.2967,3116.6,3115.6,3.833]
[1720680966125,2.2967,3116.6,3115.8,0.833]
[1720680970217,2.2967,3116.6,3115.6,3.0]
[1720680970417,2.4397,3116.4,3115.6,3.833]
[1720680973602,2.4397,3116.4,3115.5,7.4]
[1720680973807,0.833,3116.1,3115.5,7.4]
[1720680974008,2.3341,3116.0,3115.1,7.4]
[1720680974252,2.2735,3115.8,3115.1,7.4]
[1720680974960,2.3282,3115.1,3113.6,7.4]
[1720680975103,2.3282,3115.1,3113.4,2.3599]
[1720680975104,0.833,3114.8,3113.8,0.833]
[1720680975303,2.3282,3115.0,3114.0,0.833]
[1720680975607,2.56102,3115.0,3114.0,0.833]
[1720680975806,0.23761614,3114.9,3114.0,0.833]
[1720680976659,3.39402,3115.0,3114.0,0.833]
[1720680976660,0.23760362,3114.8,3114.0,0.833]
[1720680976818,0.23760362,3114.7,3114.0,0.833]
[1720680977024,0.23760362,3114.6,3114.0,0.833]
[1720680977236,0.23760362,3114.5,3114.0,0.833]
[1720680977449,0.23760362,3114.4,3114.0,0.833]
[1720680977625,0.23760362,3114.3,3114.0,0.833]
[1720680977827,0.23760362,3114.2,3114.0,0.833]
[1720680978135,0.23760362,3114.1,3114.0,0.833]
[1720680978347,3.39402,3115.0,3114.0,0.833]
[1720680978657,0.57708146,3114.9,3114.0,0.833]
[1720680978953,0.23767946,3114.8,3114.0,0.833]
[1720680979310,0.23767946,3114.8,3114.1,0.06421971]
[1720680979546,0.23767946,3114.8,3114.4,0.833]
[1720680979761,0.23767946,3114.7,3114.4,0.833]
[1720680979963,2.3282,3115.0,3114.6,0.833]
[1720680980167,0.23750883,3114.9,3114.6,0.833]
[1720680980349,0.23750696,3114.9,3114.6,0.833]
[1720680981037,0.23750696,3114.8,3114.6,0.833]
[1720680981248,2.2754,3115.3,3114.6,0.833]
[1720680981436,0.23748955,3115.2,3114.6,0.833]
[1720680982556,0.4887785,3115.2,3114.3,7.4]
[1720680982761,0.23748955,3115.1,3114.5,0.833]
[1720680983059,0.23748955,3115.0,3114.5,0.833]
[1720680983358,2.2754,3115.3,3114.5,0.833]
[1720680983359,0.23748955,3114.9,3114.5,0.833]
[1720680983596,2.2754,3115.3,3114.5,0.833]
[1720680983777,0.23755734,3115.2,3114.5,0.833]
[1720680983924,0.23755734,3115.2,3114.3,8.233]
[1720680984120,0.23755734,3115.2,3114.3,9.3563]
[1720680985517,0.23755734,3115.2,3114.3,8.233]
[1720680985724,2.2669,3115.0,3114.3,7.4]
[1720680985925,1.07055734,3114.9,3114.3,7.4]
[1720680986135,1.07055734,3114.9,3113.8,0.833]
[1720680986136,0.23755734,3114.8,3113.8,0.833]
[1720680986341,0.833,3114.7,3113.8,0.833]
[1720680986559,0.23755734,3114.6,3113.6,8.233]
[1720680986759,0.23755734,3114.6,3113.7,0.8233]
[1720680986961,2.3083,3114.5,3113.7,0.8233]
[1720680987160,0.23755734,3114.4,3113.7,0.8233]
[1720680987527,0.23755734,3114.4,3113.7,3.8233]
[1720680987739,0.23755734,3114.4,3113.8,0.833]
[1720680989981,2.3083,3114.5,3113.8,0.833]
[1720680990148,2.3083,3114.5,3113.8,2.03863]
[1720680990674,2.3083,3114.5,3113.8,5.03863]
[1720680990973,2.3083,3114.5,3113.8,2.03863]
[1720680993671,2.3083,3114.5,3113.7,3.0]
[1720680993995,2.3083,3114.5,3113.6,0.833]
[1720680995080,2.4985,3114.3,3113.6,0.833]
[1720680995266,2.4985,3114.3,3113.4,0.833]
[1720680997879,2.4985,3114.3,3113.3,3.0]
[1720680997880,3.3315,3114.3,3113.3,3.0]
[1720680998189,0.24985,3114.2,3113.3,3.833]
[1720680998482,3.3315,3114.3,3113.3,3.833]
[1720680999295,2.3981,3114.2,3113.3,3.833]
[1720681000690,3.1204,3114.1,3113.3,3.0]
[1720681001093,3.1204,3114.1,3113.1,0.833]
[1720681001592,2.2874,3114.1,3113.3,0.833]
[1720681004470,2.59944,3114.1,3113.3,0.833]
[1720681006390,3.43244,3114.1,3113.3,0.833]
[1720681007200,2.4846,3114.0,3113.3,0.833]
[1720681012670,2.4846,3114.0,3113.1,0.833]
[1720681013084,2.4846,3114.0,3113.3,0.833]
[1720681015697,0.2378693,3113.9,3113.3,0.833]
[1720681016865,2.2909,3114.1,3113.3,0.833]
[1720681017203,0.23786244,3114.0,3113.3,0.833]
[1720681017806,0.23787537,3113.9,3113.3,0.833]
[1720681017996,0.23787537,3113.8,3113.3,0.833]
[1720681018198,2.2909,3114.1,3113.3,0.833]
[1720681018688,0.2378651,3114.0,3113.3,0.833]
[1720681020082,0.23786264,3113.9,3113.3,0.833]
[1720681020286,0.23786264,3113.8,3113.3,0.833]
[1720681020607,0.23786264,3113.7,3113.3,0.833]
[1720681020816,0.23786264,3113.6,3113.3,0.833]
[1720681021025,0.23786264,3113.5,3113.3,0.833]
[1720681021311,2.2909,3114.1,3113.3,0.833]
[1720681021476,0.23787867,3114.0,3113.3,0.833]
[1720681024996,2.2909,3114.1,3113.3,0.833]
[1720681025320,0.23786998,3114.0,3113.3,0.833]
[1720681025528,0.23786998,3114.0,3113.5,0.833]
[1720681025743,0.23786998,3114.0,3113.7,0.833]
[1720681025887,0.33613328,3114.7,3113.7,0.833]
[1720681025888,0.23786998,3113.9,3113.7,0.833]
[1720681026257,0.23786998,3113.8,3113.7,1.15623]
[1720681026426,0.23786998,3114.3,3113.7,1.15623]
[1720681026788,0.23786998,3114.3,3113.9,0.833]
[1720681027010,0.23786998,3114.3,3114.0,0.06421946]
[1720681027520,0.23786998,3114.3,3113.9,0.833]
[1720681028129,0.23786998,3114.3,3113.9,0.89721948]
[1720681028287,0.23786998,3114.3,3113.9,0.89721949]
[1720681028929,0.23786998,3114.3,3113.9,0.833]
[1720681029136,0.23786998,3114.3,3114.0,0.0642195]
[1720681029289,0.23786998,3114.3,3114.0,0.06421949]
[1720681029485,0.23786998,3114.3,3113.9,0.833]
[1720681030137,0.39786998,3114.3,3113.9,0.833]
[1720681030428,0.23786998,3114.2,3113.9,0.833]
[1720681030795,0.23786998,3114.2,3113.7,1.15623]
[1720681031089,0.23786998,3114.2,3113.8,1.155623]
[1720681031842,0.2376864,3114.1,3113.8,1.155623]
[1720681031996,0.2376864,3114.0,3113.8,1.155623]
[1720681032195,0.2376864,3113.9,3113.7,0.32323]
[1720681032419,0.2376864,3113.8,3113.6,10.4]
[1720681032635,0.2376864,3113.7,3113.6,10.4]
[1720681032854,0.2376864,3114.2,3113.6,10.4]
[1720681033160,0.4796664,3114.2,3113.6,10.4]
[1720681033370,0.2376864,3114.1,3113.6,10.4]
[1720681033858,0.2376864,3114.0,3113.6,10.4]
[1720681034068,0.2376864,3113.9,3113.6,10.4]
[1720681034267,0.2376864,3113.8,3113.6,11.5233]
[1720681034474,0.16,3114.3,3113.6,11.5233]
[1720681034475,0.2376864,3113.7,3113.6,11.5233]
[1720681034823,0.2376864,3114.2,3113.6,11.5233]
[1720681035046,0.2376864,3114.1,3113.7,2.40322549]
[1720681035223,0.2376573,3114.0,3113.9,0.833]
[1720681035425,0.2376573,3114.2,3113.9,0.833]
[1720681035625,0.2376573,3114.1,3113.9,0.833]
[1720681035849,0.2376573,3114.0,3113.9,0.833]
[1720681036037,0.2376573,3114.2,3113.8,4.45687246]
[1720681036252,0.2376573,3114.1,3113.8,4.45687246]
[1720681036440,0.2376573,3114.0,3113.8,4.45687246]
[1720681036641,0.2376573,3113.9,3113.8,4.45687246]
[1720681036948,0.2376573,3114.2,3113.8,4.45687301]
[1720681037167,0.2376573,3114.1,3113.8,3.06422046]
[1720681037374,0.2376573,3114.0,3113.8,3.06422046]
[1720681037658,0.2376573,3113.9,3113.8,3.06422046]
[1720681037833,0.2376573,3114.2,3113.8,3.0]
[1720681038037,0.2376573,3114.1,3113.8,3.0]
[1720681038351,0.2376573,3114.0,3113.7,0.833]
[1720681038659,0.23770652,3113.9,3113.7,0.833]
[1720681038849,0.23770652,3113.8,3113.7,0.833]
[1720681039164,0.23768928,3113.8,3113.7,1.22272247]
[1720681039527,0.23768928,3114.2,3113.7,1.22272247]
[1720681039752,0.23768928,3114.1,3113.7,1.22272247]
[1720681039953,0.23768928,3114.0,3113.7,1.28694471]
[1720681040149,0.23768928,3113.9,3113.8,0.06422224]
[1720681040340,0.23768928,3113.9,3113.8,3.27072224]
[1720681040535,0.23768928,3113.9,3113.8,6.63676671]
[1720681040750,0.23768928,3114.2,3113.8,6.63676671]
[1720681040948,0.23768928,3114.2,3114.0,0.833]
[1720681041566,0.23765412,3114.1,3114.0,0.833]
[1720681042062,0.23766472,3114.1,3114.0,0.833]
[1720681042264,0.16,3114.3,3114.0,0.833]
[1720681042265,0.23766472,3114.2,3114.0,0.833]
[1720681045431,0.16,3114.3,3114.0,0.833]
[1720681045725,0.2376485,3114.2,3114.0,0.833]
[1720681048838,0.16,3114.3,3114.0,0.833]
[1720681049025,0.23764955,3114.2,3114.0,0.833]
[1720681050868,0.23764955,3114.2,3113.6,3.0]
[1720681051060,0.23764955,3114.2,3113.8,0.833]
[1720681052541,0.2377262,3114.1,3113.8,0.833]
[1720681052740,0.2377262,3114.0,3113.8,0.833]
[1720681052944,0.2377262,3113.9,3113.8,0.833]
[1720681053165,0.2377262,3114.2,3113.8,0.833]
[1720681056198,0.23774939,3114.1,3113.8,0.833]
[1720681056346,0.23774939,3114.0,3113.8,0.833]
[1720681056679,0.23774939,3113.9,3113.8,0.833]
[1720681057270,0.23774939,3114.2,3113.8,0.833]
[1720681059451,2.6397,3114.3,3113.8,0.833]
[1720681059638,0.23774854,3114.2,3113.8,0.833]
[1720681063056,0.23774157,3114.1,3113.8,0.833]
[1720681063277,2.6397,3114.3,3113.8,0.833]
[1720681063278,0.23774157,3114.0,3113.8,0.833]
[1720681063482,0.23774157,3113.9,3113.8,0.833]
[1720681064056,0.23774157,3114.2,3113.8,0.833]
[1720681064351,0.23774157,3114.1,3113.8,0.833]
[1720681064557,0.23774157,3114.0,3113.8,0.833]
[1720681064758,0.23774157,3113.9,3113.8,0.833]
[1720681065181,0.23774157,3114.2,3113.8,0.833]
[1720681065546,0.23774157,3114.1,3113.8,0.833]
[1720681065797,0.23774157,3114.0,3113.3,7.4]
[1720681065952,0.23774157,3113.9,3113.1,2.4894]
[1720681066298,0.290367,3114.2,3113.3,0.833]
[1720681066299,0.23774157,3113.8,3113.3,0.833]
[1720681066469,2.4371,3114.0,3113.3,0.833]
[1720681066669,0.48165697,3113.9,3113.3,0.833]
[1720681066860,0.23794697,3113.8,3113.3,0.833]
[1720681067262,0.24371,3113.9,3113.3,0.833]
[1720681067263,0.23791629,3113.7,3113.3,0.833]
[1720681067467,0.23791629,3113.6,3113.3,0.833]
[1720681067668,0.23791629,3113.5,3113.3,0.833]
[1720681068005,0.24371,3113.9,3113.3,0.833]
[1720681068006,0.23791629,3113.4,3113.3,0.833]
[1720681068289,0.23791629,3113.8,3113.3,0.833]
[1720681069885,0.23791629,3113.7,3113.3,0.833]
[1720681070101,0.23795764,3113.6,3113.3,0.833]
[1720681070301,0.23795764,3113.5,3113.3,0.833]
[1720681070512,0.23795764,3113.4,3113.3,0.833]
[1720681070980,0.23795764,3113.4,3113.1,3.0]
[1720681070981,0.23795764,3113.4,3113.1,3.833]
[1720681071189,0.23795764,3113.3,3113.1,4.9563]
[1720681071391,0.23795764,3113.2,3112.8,2.3054]
[1720681071707,0.23795764,3113.1,3113.0,0.833]
[1720681071885,0.23795764,3113.6,3113.0,0.833]
[1720681072087,0.23795764,3113.5,3113.0,0.833]
[1720681072305,0.23795764,3113.4,3113.0,0.833]
[1720681072507,0.23795764,3113.3,3113.0,0.833]
[1720681072708,0.23795764,3113.2,3112.9,3.0]
[1720681073013,0.23795764,3113.1,3113.0,0.833]
[1720681073171,0.23795764,3113.6,3113.0,0.833]
[1720681073379,0.23795764,3113.6,3112.9,3.0]
[1720681073380,0.5068934,3113.5,3112.8,0.833]
[1720681073710,0.23804745,3113.4,3112.8,0.833]
[1720681074784,2.4254,3113.3,3112.8,0.833]
[1720681074987,0.23804745,3113.2,3112.8,0.833]
[1720681075295,0.23804745,3113.2,3112.6,7.4]
[1720681075501,0.23804745,3113.2,3112.3,2.335]
[1720681075502,0.26634474,3113.1,3112.4,0.833]
[1720681075682,2.4315,3112.9,3112.4,0.833]
[1720681076009,0.23804745,3112.8,3112.4,0.833]
[1720681076169,0.23804745,3112.8,3112.0,2.4763]
[1720681076376,0.5050022,3112.8,3112.1,0.833]
[1720681076610,0.23804745,3112.7,3112.1,0.833]
[1720681076798,0.26695475,3112.8,3112.1,0.833]
[1720681077008,0.23824842,3112.7,3112.1,0.833]
[1720681077509,0.23824842,3112.7,3112.0,0.833]
[1720681078210,0.23824842,3112.7,3111.7,0.06426166]
[1720681078397,2.4552,3112.6,3111.8,0.833]
[1720681078599,0.50759326,3112.5,3111.8,0.833]
[1720681078797,0.23824842,3112.4,3111.4,2.258]
[1720681079012,0.23824842,3112.4,3111.8,0.833]
[1720681080384,0.26934484,3112.5,3111.8,0.833]
[1720681080385,0.23840733,3112.3,3111.8,0.833]
[1720681080617,0.23840733,3112.2,3111.8,0.833]
[1720681080824,0.26934484,3112.5,3111.8,0.833]
[1720681081012,0.238409,3112.4,3111.8,0.833]
[1720681082943,0.26934484,3112.5,3111.8,0.833]
[1720681083250,0.23839347,3112.4,3111.8,0.833]
[1720681083844,2.4552,3112.6,3111.8,0.833]
[1720681084146,0.56720804,3112.5,3111.8,0.833]
[1720681084299,2.4552,3112.6,3111.8,0.833]
[1720681084502,0.23839975,3112.5,3111.8,0.833]
[1720681084828,2.4552,3112.6,3112.0,0.833]
[1720681089952,2.4552,3112.6,3111.8,0.833]
[1720681092648,2.4552,3112.6,3111.5,3.06426621]
[1720681092828,2.70072,3112.6,3111.9,0.833]
[1720681095470,2.4552,3112.6,3112.1,0.833]
[1720681095777,2.4131,3112.9,3112.3,0.833]
[1720681100544,2.4902,3113.2,3112.3,0.833]
[1720681100880,0.57053247,3113.1,3112.3,0.833]
[1720681101181,0.23821247,3113.0,3112.3,0.833]
[1720681102562,0.23821247,3113.0,3112.4,0.06425734]
[1720681102795,2.4902,3113.2,3112.5,0.833]
[1720681102996,0.23817027,3113.1,3112.5,0.833]
[1720681103184,3.85163697,3115.7,3112.5,0.833]
[1720681103185,3.392,3113.9,3112.7,0.833]
[1720681103385,0.833,3113.7,3112.7,0.833]
[1720681106906,3.3232,3113.8,3112.8,0.833]
[1720681107207,1.4638483,3113.7,3112.8,0.833]
[1720681107369,0.33232,3113.7,3112.8,0.833]
[1720681108391,1.46771561,3113.6,3112.8,0.833]
[1720681108597,0.33618789,3113.6,3112.8,0.833]
[1720681113699,0.33618789,3113.6,3113.0,0.833]
[1720681113875,0.33618789,3113.6,3113.3,0.833]
[1720681114083,0.33618789,3113.6,3113.5,0.833]
[1720681115422,0.33618789,3113.6,3113.5,3.1144]
[1720681120201,0.33618789,3113.6,3113.5,6.1144]
[1720681120510,0.33618789,3113.6,3113.5,6.72584]
[1720681130071,0.16,3114.3,3113.5,6.72584]
[1720681130227,0.16,3114.3,3114.2,0.833]
[1720681130858,0.49614519,3114.3,3114.2,0.833]
[1720681135627,0.49614519,3114.3,3114.0,0.833]
[1720681136270,0.49614519,3114.3,3114.2,0.833]
[1720681151611,0.33614519,3114.3,3114.2,0.833]
[1720681155926,2.4102,3114.2,3113.8,3.0]
[1720681156135,2.68483452,3114.2,3113.8,0.833]
[1720681158010,2.68483452,3114.2,3113.4,0.833]
[1720681158206,2.385,3114.1,3113.4,0.833]
[1720681158719,2.385,3114.1,3113.2,0.833]
[1720681158943,0.26596345,3114.0,3113.2,0.833]
[1720681159142,2.464,3113.9,3113.2,0.833]
[1720681160303,2.464,3113.9,3112.7,3.0]
[1720681160506,2.464,3113.9,3113.3,8.233]
[1720681162140,2.464,3113.9,3113.3,0.833]
[1720681163527,0.23794522,3113.8,3113.3,0.833]
[1720681165811,0.2379563,3113.7,3113.3,0.833]
[1720681166003,0.2379563,3113.6,3113.3,0.833]
[1720681166204,0.2379563,3113.5,3113.3,0.833]
[1720681166408,0.2379563,3113.4,3113.3,0.833]
[1720681166812,0.2379563,3113.8,3113.3,0.833]
[1720681167012,2.464,3113.9,3113.3,0.833]
[1720681167013,0.2379563,3113.7,3113.3,0.833]
[1720681167214,0.2379563,3113.6,3113.3,0.833]
[1720681167426,0.2379563,3113.5,3113.3,0.833]
[1720681167642,0.2379563,3113.4,3113.3,1.14817]
[1720681167844,0.2379563,3113.8,3113.3,1.14817]
[1720681168047,0.2379563,3113.8,3113.7,0.833]
[1720681168542,0.2379563,3114.1,3113.7,0.833]
[1720681169255,2.3923,3113.9,3113.7,0.833]
[1720681169410,0.23782985,3113.8,3113.5,0.833]
[1720681170043,0.23782985,3113.8,3113.3,0.833]
[1720681170234,2.3317,3113.7,3113.1,3.0]
[1720681170431,0.23782985,3113.6,3113.3,0.833]
[1720681171251,0.23782985,3113.6,3113.5,0.833]
[1720681171424,2.4484,3114.0,3113.5,0.833]
[1720681171627,0.23782985,3113.9,3113.5,0.833]
[1720681172662,0.23790363,3113.8,3113.5,0.833]
[1720681172831,0.23790363,3113.7,3113.5,0.833]
[1720681173032,0.23790363,3113.6,3113.5,0.833]
[1720681173229,0.23790363,3113.9,3113.5,0.833]
[1720681173532,2.3263,3113.8,3113.5,0.833]
[1720681173739,0.23790363,3113.7,3113.3,0.833]
[1720681174315,0.23790363,3113.7,3113.1,3.0]
[1720681174316,2.4262,3114.0,3113.6,0.833]
[1720681174654,0.23786177,3113.9,3113.6,0.833]
[1720681175256,0.26640618,3113.8,3113.6,0.833]
[1720681175429,0.23786177,3113.7,3113.4,0.833]
[1720681175809,0.23786177,3113.6,3113.4,0.833]
[1720681176015,0.23786177,3113.5,3113.4,0.833]
[1720681176215,0.2379468,3113.5,3113.4,0.833]
[1720681176652,2.3987,3113.5,3113.0,7.4]
[1720681176950,2.3987,3113.3,3112.7,7.4]
[1720681177130,0.2379468,3113.2,3112.7,7.4]
[1720681177454,0.2379468,3113.2,3112.8,0.833]
[1720681177751,0.2379468,3113.2,3113.0,0.833]
[1720681177947,0.2379468,3113.1,3113.0,0.833]
[1720681178157,0.2379468,3113.5,3113.0,0.833]
[1720681178313,0.2379468,3113.4,3112.7,9.8945]
[1720681178513,2.475,3113.9,3113.4,0.833]
[1720681178714,0.23788105,3113.8,3113.6,0.833]
[1720681179214,0.23788105,3113.7,3113.2,3.0]
[1720681179526,2.475,3114.2,3113.5,0.833]
[1720681179737,0.23786489,3114.1,3113.5,0.833]
[1720681181052,0.23786489,3114.1,3113.7,0.833]
[1720681182945,0.23783502,3114.0,3113.7,0.833]
[1720681183177,0.23783502,3113.9,3113.7,0.833]
[1720681183398,0.23783502,3113.8,3113.7,0.833]
[1720681184158,0.23783502,3114.1,3113.7,0.833]
[1720681184357,0.23783502,3114.0,3113.7,0.833]
[1720681184554,0.23783502,3113.9,3113.7,0.833]
[1720681184761,2.475,3114.2,3113.7,0.833]
[1720681184762,0.23783502,3113.8,3113.7,0.833]
[1720681184966,0.23783502,3113.8,3113.7,1.15641]
[1720681185464,0.23783502,3114.4,3113.7,1.15641]
[1720681185667,0.23783502,3114.3,3113.7,1.15641]
[1720681185859,0.23783502,3114.2,3113.7,1.15641]
[1720681186059,0.23783502,3114.1,3113.7,1.15641]
[1720681186293,0.23783502,3114.0,3113.7,1.15641]
[1720681186473,0.23777332,3113.9,3113.7,1.15641]
[1720681186786,0.23777332,3113.8,3113.7,1.15641]
[1720681187088,0.23777332,3114.4,3113.7,1.22063444]
[1720681187247,0.23777332,3114.4,3113.9,0.833]
[1720681188264,0.23777332,3114.4,3113.7,1.15641]
[1720681189984,0.23772926,3114.3,3113.7,1.15641]
[1720681190190,0.23772926,3114.2,3113.7,1.15641]
[1720681190388,0.23772926,3114.1,3113.7,1.15641]
[1720681190687,0.23772926,3114.0,3113.7,1.15641]
[1720681190890,0.23772926,3113.9,3113.7,1.15641]
[1720681191076,0.23772926,3113.8,3113.7,1.15641]
[1720681191273,0.23772926,3114.4,3113.7,0.32341]
[1720681191486,0.49877219,3114.4,3113.7,0.833]
[1720681191794,0.23772926,3114.3,3113.9,0.833]
[1720681191966,0.23772926,3114.2,3113.9,0.833]
[1720681192164,0.23772926,3114.1,3113.9,0.833]
[1720681192375,0.23772926,3114.0,3113.9,0.833]
[1720681193190,0.23772926,3114.7,3113.9,0.833]
[1720681193497,0.23771678,3114.6,3114.0,0.06421823]
[1720681193648,0.33705293,3114.7,3114.0,0.06421823]
[1720681193853,0.23770828,3114.6,3114.0,0.06421823]
[1720681194151,0.23770828,3114.6,3114.1,0.833]
[1720681194478,0.23770828,3114.5,3114.3,0.833]
[1720681194795,2.2998,3114.8,3114.3,0.833]
[1720681194796,0.23770828,3114.4,3114.3,0.833]
[1720681195092,0.23770828,3114.7,3114.3,0.833]
[1720681196767,0.23763092,3114.6,3114.3,0.833]
[1720681196973,0.23763092,3114.5,3114.3,0.833]
[1720681197186,0.23763092,3114.4,3114.3,0.833]
[1720681197380,0.23763092,3114.7,3114.3,0.833]
[1720681198570,0.23763092,3114.6,3114.3,0.833]
[1720681198913,2.60186473,3115.1,3114.3,0.833]
[1720681198914,0.23763092,3114.5,3114.3,0.833]
[1720681199132,0.23763092,3114.4,3114.3,0.833]
[1720681199615,0.23763092,3115.0,3114.3,0.833]
[1720681200289,2.60186473,3115.1,3114.3,0.833]
[1720681200612,0.23760361,3115.0,3114.3,0.833]
[1720681200769,0.23759582,3114.9,3114.3,0.833]
[1720681200974,0.23759582,3114.8,3114.3,0.833]
[1720681201215,0.23759582,3114.7,3114.3,0.833]
[1720681201417,0.23759582,3114.6,3114.3,0.833]
[1720681201599,0.23759582,3114.5,3114.3,0.833]
[1720681201771,0.23759582,3114.4,3114.3,0.833]
[1720681201971,0.23759582,3115.0,3114.3,0.833]
[1720681202275,0.23759582,3114.9,3114.5,0.833]
[1720681202498,0.23759582,3114.8,3114.5,0.833]
[1720681202695,0.23759582,3114.7,3114.5,0.833]
[1720681203019,2.60186473,3115.1,3114.5,0.833]
[1720681203325,0.2375773,3115.0,3114.6,0.06421041]
[1720681203672,0.2375773,3115.0,3114.9,0.833]
[1720681204472,0.2375773,3115.6,3115.0,2.4546]
[1720681204673,0.23733919,3115.5,3115.1,0.833]
[1720681204902,0.23733919,3115.4,3115.1,0.833]
[1720681205100,0.23733919,3115.3,3115.1,0.833]
[1720681205429,0.23733919,3115.2,3114.4,2.4948]
[1720681205732,0.23733919,3115.1,3114.8,0.833]
[1720681205889,0.23733919,3115.0,3114.8,0.833]
[1720681206088,2.3017,3115.5,3114.8,0.833]
[1720681206089,0.23733919,3114.9,3114.8,0.833]
[1720681206310,0.23746225,3114.9,3114.6,0.833]
[1720681206641,0.23746225,3114.8,3114.5,3.0]
[1720681206833,2.3017,3115.5,3114.7,0.833]
[1720681206987,0.23745946,3115.4,3114.7,0.833]
[1720681209561,0.23745946,3115.4,3114.5,3.0]
[1720681209761,2.4861,3115.5,3114.7,0.833]
[1720681210060,0.46764535,3115.4,3114.9,0.833]
[1720681210206,0.23747535,3115.3,3114.9,0.833]
[1720681211446,0.23747535,3115.3,3115.1,0.833]
[1720681211750,0.23747535,3115.2,3115.1,0.833]
[1720681211948,0.23747535,3115.4,3115.1,0.833]
[1720681213119,2.76831633,3115.5,3115.1,0.833]
[1720681213332,0.23738162,3115.4,3115.1,0.833]
[1720681213705,0.23738162,3115.4,3114.9,0.833]
[1720681214851,0.23738162,3115.4,3115.1,0.833]
[1720681215015,0.23738162,3115.4,3115.0,0.06420052]
[1720681215016,2.4644,3115.7,3115.3,0.833]
[1720681215342,0.23732888,3115.6,3115.3,0.833]
[1720681216558,2.4644,3115.7,3115.1,0.833]
[1720681216712,0.23731611,3115.6,3115.1,0.833]
[1720681216912,0.23731611,3115.6,3115.5,0.833]
[1720681217454,0.23731611,3115.8,3115.5,0.833]
[1720681217747,2.4532,3116.2,3115.5,0.833]
[1720681217748,0.23731611,3115.7,3115.5,0.833]
[1720681217912,0.23731611,3115.6,3115.5,0.833]
[1720681218451,0.23731611,3116.1,3115.5,0.833]
[1720681218625,0.50636772,3116.1,3115.5,0.833]
[1720681218823,0.23731611,3116.0,3115.5,0.833]
[1720681220070,0.26905161,3116.1,3114.9,7.4]
[1720681220071,1.10205161,3116.1,3114.9,7.4]
[1720681220230,2.2745,3115.8,3114.9,8.233]
[1720681220460,0.2373898,3115.7,3114.9,8.233]
[1720681222962,0.23739121,3115.6,3114.9,8.233]
[1720681223150,0.25118912,3115.6,3114.9,8.233]
[1720681223352,0.23739532,3115.5,3114.9,8.233]
[1720681223987,0.23739532,3115.5,3115.1,0.833]
[1720681224369,2.2745,3115.8,3115.3,0.833]
[1720681224370,0.23739532,3115.4,3115.3,0.833]
[1720681225076,0.23739532,3115.7,3115.3,0.833]
[1720681226703,2.2745,3115.8,3115.3,0.833]
[1720681226894,0.23732406,3115.7,3115.3,0.833]
[1720681228200,0.23732406,3115.7,3115.0,2.4741]
[1720681228201,0.23732406,3115.7,3115.1,0.833]
[1720681230167,2.2745,3115.8,3115.1,0.833]
[1720681230370,0.23733206,3115.7,3115.1,1.91012952]
[1720681231811,0.23733206,3115.7,3115.3,0.833]
[1720681232121,0.23733206,3115.6,3115.3,0.89719515]
[1720681232274,2.75482048,3116.1,3115.5,0.833]
[1720681232616,0.2372513,3116.0,3115.5,0.833]
[1720681233514,0.2372513,3116.0,3115.5,3.2279]
[1720681233717,0.33602048,3116.1,3115.6,0.32279]
[1720681233718,0.23720122,3115.9,3115.6,0.32279]
[1720681234017,2.4276,3116.4,3115.6,0.32279]
[1720681234231,1.16899972,3116.3,3115.5,2.3949]
[1720681234584,4.16899972,3116.3,3115.5,2.3949]
[1720681235213,4.16899972,3116.3,3115.3,0.833]
[1720681236216,3.33599972,3116.3,3115.5,0.833]
[1720681238523,3.33599972,3116.3,3115.6,2.4839]
[1720681238833,3.33599972,3116.3,3115.6,2.81559]
[1720681239032,0.33599972,3116.3,3115.6,2.81559]
[1720681239346,0.33599972,3116.3,3115.7,0.833]
[1720681243360,0.33599972,3116.3,3115.9,0.833]
[1720681245403,0.33599972,3116.3,3116.1,0.833]
[1720681245916,2.4507,3116.6,3115.6,2.81559]
[1720681246065,2.4507,3116.6,3115.8,0.833]
[1720681247163,3.2837,3116.6,3115.6,0.833]
[1720681247389,2.3938,3116.5,3115.6,0.833]
[1720681247598,0.833,3116.4,3115.3,2.3746]
[1720681247761,2.436,3116.3,3115.4,0.833]
[1720681248077,2.7629,3116.3,3115.4,0.833]
[1720681248796,2.436,3116.3,3115.4,0.833]
[1720681248981,2.436,3116.3,3115.6,0.833]
[1720681250707,2.436,3116.3,3115.8,0.833]
[1720681251510,2.4029,3116.7,3116.0,0.833]
[1720681251856,2.4029,3116.7,3116.0,1.14829799]
[1720681251984,2.4029,3116.7,3116.0,0.833]
[1720681252300,2.4029,3116.7,3115.8,0.833]
[1720681255577,2.4029,3116.7,3116.0,0.833]
[1720681258220,2.4029,3116.7,3115.8,0.0641788]
[1720681258221,2.4029,3116.7,3115.8,0.833]
[1720681261817,2.4029,3116.7,3115.8,0.89717689]
[1720681262232,2.4029,3116.7,3116.0,0.833]